Cogmind - Beta 14 @@@ ROGUE MODE // 2024.12.27 @ 15:46:06 Player: f3-rnm Result: Destroyed by G-34 Mercenary with Small Laser Performance ------------- Evolutions (0) 0 Regions Visited (2) 400 Robots Destroyed (25) 125 Value Destroyed (466) 466 Prototype IDs (0) 0 Alien Tech Used (0) 0 Bonus (0) 0 TOTAL SCORE: 991 Bonus ------- None Cogmind --------- Core Integrity 0/250 Matter 295/300 Energy 100/100 System Corruption 0% Temperature Cool (6) Movement Rolling (175) Ox5 Location -10/Mines Parts ------- > --- POWER (1) -------- (None) > --- PROPULSION (2) --- Compact Wheel > --- UTILITY (2) ------ Huge Storage Unit > --- WEAPON (2) ------- Light Assault Rifle Light Assault Rifle > --- INVENTORY (25) --- Ion Engine Ion Engine Heat Sink Heat Sink Improved Heat Sink Medium Storage Unit Large Storage Unit Experimental Sensor Array Improved Terrain Scanner Weapon Shielding Tractor Beam Medium Laser Datajack Peak State ------------ > --- POWER ------------ Ion Engine > --- PROPULSION ------- Light Treads Light Treads > --- UTILITY ---------- Large Storage Unit Huge Storage Unit > --- WEAPON ----------- Assault Rifle Light Assault Rifle > --- INVENTORY -------- Ion Engine Compact Wheel Heat Sink Improved Heat Sink Medium Storage Unit Weapon Shielding Tractor Beam Medium Laser [Rating: 8] Favorites ----------- Power Ion Engine Engine Ion Engine Propulsion Light Treads Treads Light Treads Wheel Compact Wheel Utility Huge Storage Unit Storage Huge Storage Unit Weapon Light Assault Rifle Ballistic Gun Light Assault Rifle Special Melee Weapon Datajack Build | -11 -10 -10 ------- Run | Yrd Mat Min Slots Evolved . | . . . Power . | . . . Propulsion . | . . . Utility . | . . . Weapon . | . . . Parts Attached 15 | 6 2 7 Power 2 | 1 . 1 Engine 2 | 1 . 1 Core . | . . . Reactor . | . . . Propulsion 3 | 2 . 1 Treads 2 | 2 . . Leg . | . . . Wheel 1 | . . 1 Hover . | . . . Flight . | . . . Utility 3 | 1 2 . Device . | . . . Storage 3 | 1 2 . Processor . | . . . Hackware . | . . . Protection . | . . . Artifact . | . . . Weapon 7 | 2 . 5 Energy Gun . | . . . Energy Cannon . | . . . Ballistic Gun 6 | 2 . 4 Ballistic Cannon . | . . . Launcher . | . . . Special Weapon . | . . . Impact Weapon . | . . . Slashing Weapon . | . . . Piercing Weapon . | . . . Special Melee Weapon 1 | . . 1 Unidentified Prototypes . | . . . Parts Lost 8 | . . 8 Power 2 | . . 2 Propulsion 2 | . . 2 Utility . | . . . Weapon 4 | . . 4 Highest Loss Streak 4 | . . 4 To Critical Strikes . | . . . Average Slot Usage (%) 80 | . 92 71 Engine 13 | . 14 13 Treads 11 | . 28 . Wheel 7 | . . 13 Storage 17 | . 20 15 Ballistic Gun 27 | . 28 27 Peak Build Rating 8 | 6 8 8 Average Rating 6 | 5 6 6 On Entrance 4 | . 6 8 Naked Turns . | . . . Heaviest Build 108 | 13 108 107 Greatest Support 40 | 40 40 16 Greatest Overweight (x) 6 | . 2 6 Average Overweight (x) 2 | . . 5 Largest Inventory Capacity 25 | 8 25 25 Average Capacity 20 | 7 17 25 Most Carried 13 | 4 10 13 Average Carried 8 | 2 6 11 Final Capacity 25 | 8 25 25 Final Carried 13 | 4 10 13 Class Distribution -------------------- 100% | Mutant Dominant Class ---------------- Mutant | -10/Materials Mutant | -10/Mines Resources | -11 -10 -10 ----------- Run | Yrd Mat Min Matter Collected 660 | 271 253 136 Remotely . | . . . Salvage Created 783 | 135 421 227 Parts 49 | 10 23 16 Haulers Intercepted . | . . . Recyclers Shooed 2 | . 2 . Parts Field Recycled . | . . . Retrieved Matter . | . . . Parts Self-Destructed . | . . . Prevented . | . . . Kills | -11 -10 -10 ------- Run | Yrd Mat Min Combat Hostiles Destroyed 20 | . 9 11 Guns 20 | . 9 11 Classes Destroyed 7 | 3 3 1 Worker 2 | 1 . 1 Tunneler 2 | 2 . . Recycler 2 | 1 1 . Watcher 1 | . 1 . Swarmer 9 | . 3 6 Grunt 9 | . 6 3 Assembled 2 | . . 2 Best Kill Streak 3 | 2 2 3 Combat Bots Only 3 | . 2 3 Max Kills in Single Turn 1 | 1 1 1 Gunslinging . | . . . Exploded . | . . . Melee . | . . . Uniques/NPCs Destroyed . | . . . Combat | -11 -10 -10 -------- Run | Yrd Mat Min Hostile Shots Fired 141 | . 56 85 Missed 33 | . 11 22 Damage Taken 1115 | . 519 596 Core 261 | . 85 176 Absorbed by Shields . | . . . Core Remaining (%) 100 | 100 . . Volleys Fired 108 | 16 45 47 Largest 2 | 2 2 2 Hottest 40 | 40 40 40 Shots Fired 212 | 32 90 90 Gun 212 | 32 90 90 Cannon . | . . . Launcher . | . . . Special . | . . . Kinetic 212 | 32 90 90 Thermal . | . . . Explosive . | . . . Electromagnetic . | . . . Robot Hit Streak 11 | 9 11 5 Robot Miss Streak 5 | 1 5 2 Penetration Max . | . . . Secondary Targets 2 | . 1 1 Max Gunslinging Chain 1 | . 1 1 Shots Hit Robots 125 | 19 52 54 Core Hits 53 | 7 21 25 Critical Kills . | . . . Critical Parts Destroyed . | . . . Critical Strikes . | . . . Melee Attacks . | . . . Impact . | . . . Slashing . | . . . Piercing . | . . . Sneak Attacks . | . . . Combat Hostiles . | . . . Follow-up Attacks . | . . . Damage Inflicted 1219 | 193 570 456 Guns 1212 | 193 563 456 Cannons . | . . . Explosions . | . . . Melee . | . . . Ramming 7 | . 7 . Kinetic 1212 | 193 563 456 Thermal . | . . . Explosive . | . . . Electromagnetic . | . . . Impact . | . . . Slashing . | . . . Piercing . | . . . Highest Corruption . | . . . Average Corruption . | . . . Corruption Purged . | . . . Corruption Blocked . | . . . Overload Shots . | . . . Overflow Damage . | . . . Projectiles . | . . . Explosions . | . . . Melee . | . . . Knockbacks . | . . . Impact . | . . . Kinetic . | . . . Secondary . | . . . Self-Inflicted Damage . | . . . Shots . | . . . Rammed . | . . . Targets Rammed 1 | . 1 . Kicked . | . . . Crushed 1 | . 1 . Highest Temperature 40 | . 16 40 Average Temperature 9 | . 7 11 Received Heat Transfer 435 | . 243 192 Siege Activations . | . . . Robots Corrupted . | . . . Combat Hostiles . | . . . Parts Fried . | . . . Impact Corruptions . | . . . Robots Melted . | . . . Combat Hostiles . | . . . Parts Melted . | . . . Heat Transferred . | . . . Parts Sabotaged . | . . . Parts Stolen . | . . . Parts Stripped . | . . . Power Chain Reactions . | . . . Alert | -11 -10 -10 ------- Run | Yrd Mat Min Peak Influence 175 | 20 175 148 Initial 58 | . 13 58 Average 65 | 8 78 67 Maximum Alert Level . | . . . Low Security (%) 100 | 100 100 100 Level 1 . | . . . Level 2 . | . . . Level 3 . | . . . Level 4 . | . . . Level 5 . | . . . High Security . | . . . Max Security . | . . . Squads Dispatched 1 | . 1 . Investigation . | . . . Extermination . | . . . Reinforcement 1 | . 1 . Assault . | . . . Garrison . | . . . Intercept . | . . . Searches Triggered . | . . . Construction Impeded . | . . . Haulers Reinforced . | . . . Active Scanning Responses . | . . . Cargo Convoy Interrupts . | . . . Stealth | -11 -10 -10 --------- Run | Yrd Mat Min Distress Signals 2 | . 2 . Communications Jammed . | . . . Distress Signals . | . . . Times Spotted 31 | . 15 16 Peak Tracking Total 5 | . 5 3 Tactical Retreats 7 | . 4 3 Traps | -11 -10 -10 ------- Run | Yrd Mat Min Traps Triggered . | . . . Indirectly . | . . . Trap Hack Attempts . | . . . Triggered . | . . . Disarmed . | . . . Reprogrammed . | . . . Reused . | . . . Traps Extracted . | . . . Installed . | . . . Triggered . | . . . Machines | -11 -10 -10 ---------- Run | Yrd Mat Min Machines Disabled . | . . . Max in Single Turn . | . . . Machines Repaired . | . . . Machines Dismantled . | . . . Machines Sabotaged . | . . . Overloaded Fab Kills . | . . . Hacking | -11 -10 -10 --------- Run | Yrd Mat Min Machines Accessed . | . . . Terminals . | . . . Fabricators . | . . . Repair Stations . | . . . Recycling Units . | . . . Scanalyzers . | . . . Garrison Access . | . . . Total Hacks . | . . . Successful . | . . . Failed . | . . . Catastrophic . | . . . Database Lockouts . | . . . Manual . | . . . Terminals . | . . . Fabricators . | . . . Repair Stations . | . . . Recycling Units . | . . . Scanalyzers . | . . . Garrison Access . | . . . Terminal Hacks . | . . . Fabricator Hacks . | . . . Repair Station Hacks . | . . . Recycling Unit Hacks . | . . . Scanalyzer . | . . . Garrison Access Hacks . | . . . Unauthorized Hacks . | . . . Terminals . | . . . Fabricators . | . . . Repair Stations . | . . . Recycling Units . | . . . Scanalyzers . | . . . Garrison Access . | . . . Data Cores Recovered . | . . . Used . | . . . Hacking Detections . | . . . Full Trace Events . | . . . Feedback Events . | . . . Feedback Blocked . | . . . Robot Schematics Acquired . | . . . Robots Built . | . . . Authchips . | . . . Time . | . . . Total Robot Build Rating . | . . . Part Schematics Acquired . | . . . Parts Built . | . . . Authchips . | . . . Time . | . . . Total Part Build Rating . | . . . Parts Repaired . | . . . Time . | . . . Parts Recycled . | . . . Recycled Matter . | . . . Retrieved Matter . | . . . Retrieved Components . | . . . Parts Scanalyzed . | . . . Part Schematics Acquired . | . . . Parts Damaged . | . . . Bothacking | -11 -10 -10 ------------ Run | Yrd Mat Min Used RIF Installer . | . . . Robots Hacked . | . . . Non-combat . | . . . Combat . | . . . Robot Hacks Applied . | . . . Relay Couplers Released . | . . . Fabnet Peak Effective % . | . . . Robots Rewired . | . . . Allies Hacked . | . . . Hacks Repelled . | . . . Allies | -11 -10 -10 -------- Run | Yrd Mat Min Total Allies . | . . . Largest Group . | . . . Highest-Rated Group . | . . . Highest-Rated Ally . | . . . Total Orders . | . . . Ally Attacks . | . . . Total Damage . | . . . Kills . | . . . Allies Corrupted . | . . . Allies Melted . | . . . Intel | -11 -10 -10 ------- Run | Yrd Mat Min Robot Analysis Total . | . . . Derelict Logs Recovered 1 | . . 1 Drone Launches . | . . . Drone Recoveries . | . . . Exploration | -11 -10 -10 ------------- Run | Yrd Mat Min Turns Passed 1684 | 181 635 868 Spaces Moved 588 | 80 209 299 Core 3 | 3 . . Treads 286 | 77 209 . Legs . | . . . Wheels 299 | . . 299 Hover . | . . . Flight . | . . . Fastest Speed 50 | 50 160 175 Average Speed 185 | 155 211 175 Slowest Speed 320 | 160 320 190 Overloaded Moves . | . . . Propulsion Burnouts . | . . . Robots Hopped . | . . . Cave-ins Triggered . | . . . Exploration Rate (%) 42 | 5 50 71 Regions Visited 2 Branch Regions 1 Pre-discovered Areas . | . . . Known Exits Taken . | . . . Unknown Exits Taken 2 | 1 1 . Scrap Searched 1 | . . 1 Spaces Dug . | . . . Terrain Destroyed . | . . . Melee . | . . . Projectile . | . . . AOE . | . . . Terrain Rammed . | . . . Walls Destroyed . | . . . Machines Disabled . | . . . Actions | -11 -10 -10 --------- Run | Yrd Mat Min Total 997 | 105 323 569 Wait 264 | . 58 206 Move 586 | 79 208 299 Hop . | . . . Pick Up 19 | 4 7 8 Fast Attach 8 | 6 2 . Attach 7 | . . 7 Detach 2 | . . 2 Swap . | . . . Drop 2 | . 2 . Fire 108 | 16 45 47 Melee . | . . . Ram . | . . . Kick . | . . . Crush 1 | . 1 . Escape Stasis . | . . . Rewire . | . . . Trap . | . . . Miscellaneous . | . . . Route ------- -11/Scrapyard -10/Materials (discovered 2 exits: *Mat / [*Min]) -10/Mines (discovered 2 exits: *Mat x2) History --------- Turn | Location | Event 4 | -11/Scrapyard | Discovered new exit (range 15) 182 | -11/Scrapyard | Entered Materials 316 | -10/Materials | Build established: Mutant 480 | -10/Materials | Discovered new exit (range 15) 801 | -10/Materials | Discovered new exit (range 6) 817 | -10/Materials | Entered Mines 842 | -10/Mines | Core integrity fell below 50% 861 | -10/Mines | Lost 4 parts (1p2n1w) 947 | -10/Mines | Found a damaged Exp. Sensor Array with a note attached 951 | -10/Mines | Found Prototype Device 973 | -10/Mines | Identified exit to Materials 1030 | -10/Mines | Discovered exit to Materials (range 3) 1377 | -10/Mines | Excavation squad dispatched 1377 | -10/Mines | A large section of the Mines collapsed 1632 | -10/Mines | Core integrity fell below 20% 1685 | -10/Mines | Destroyed by G-34 Mercenary with Small Laser Last Messages --------------- 01564_ Acquired 15 matter. 01566_ T-07 Excavator is excavating. 01568_ Acquired Heat Sink. 01571_ T-07 Excavator is excavating. 01572_ Acquired Ion Engine. 01574_ U-05 Engineer lays Concrete. 01575_ T-07 Excavator is excavating. 01575_ U-05 Engineer lays Concrete. 01580_ T-07 Excavator is excavating. 01602_ Lgt. Assault Rifle destroyed. 01612_ G-34 Mercenary destroyed. 01618_ Acquired 20 matter. 01624_ Lgt. Assault Rifle destroyed. 01636_ as-84396 destroyed. 01640_ T-07 Excavator destroyed. 01641_ G-34 Mercenary destroyed. 01646_ Acquired Imp. Terrain Scanner. 01647_ Acquired 20 matter. 01659_ Acquired Ion Engine. 01679_ Ion Engine destroyed. Map ----- +----------------------------------------------------+ | ????????????????# #??????????????????? | | ????????????????# #??????????######### | | ?########???????# #??????????# """ # | | ?# """ #???????# ######?????# """ # | | ?# """ #???????# ## ##????# """ # | | ?# """ ######### ## #????# # | | ?# =%=### #????# < # | | ?# ###### ##[#?# #????# # | | ?# #????# ## #?## ##?###### #### | | ?########????# ## #??## ### ### #??? | | ?????????????# ## ##### ## #??? | | ?????????????# ## # #### | | ?????????????# ####### | | ????????????## ####??# % | | ???????????## ##?## # ######### | | ???????????# """ #??## ####???????? | | ???####????# """ #???# #??????????? | | ???# #????## """ #???# ??????????? | | ???# #????## ##???#### ?????????? | | ???# ##??## ##???????? #????????? | | ???# #### t ##?????????#????????? | | ???## ##?????????????????? | | ????## t #?????????????????? | | ?????## ### t# #???????????????? | | ??????####?# g## #??????????????? | | ???????????#t@#?### #?????????????? | | ???????????# #????# #????????????? | | ???????????# ###???# ???????????? | | ???????????# #????# ????###???? | | ???????????# #?????# ????? #???? | | ???????????### ####???? ??????# #???? | | ??????????#### #???????????# #???? | | ?????????## =% #???????????# #???? | | ???# # ##???????????# ###?? | | ???# / #???????????## ##? | | ???# / """ %|#?????????###### #? | | ???# # """ %##????????## "## #? | | ???#####?## """ ##?????### # #? | | ??????????# =####??# % ###? | | ??????????# %* #### ########?? | | ??????????## ## #????????? | | ???????????# ##### #####????????? | | ???????????## #????# #????????????? | | ????????????##?????## ##????????????? | | ????????????????????####?????????????? | | ?????????????????????????????????????? | | ?????????????????????????????????????? | | ?????????????????????????????????????? | | ?????????????????????????????????????? | | | +----------------------------------------------------+ Best States ------------- Heat Dissipation 25 Energy Generation 10 Energy Capacity 250 Matter Stores 300 Matter Capacity 300 Sight Range 16 Terrain Scan Density 10 Evasion (%) 40 Recoil Reduction 2 Item Schematics ----------------- None Robot Schematics ------------------ None Fabricated ------------ Nothing Alien Tech Used ----------------- None Achievements -------------- None Challenges ------------ None Game ------ Seed EfficiencyVisualActivator Manual? 0 Play Time 00:06:53 Cumulative 247.2 hours Start 2024.12.27 @ 15:41:23 End 2024.12.27 @ 15:46:06 Sessions 1 Manual Loads 0 Difficulty Rogue Special Mode None Game No. 263 Rogue 227 Adventurer 36 Explorer 0 Win Type - Total 10 Types 3/0/7/0/0/0/0/0/0 Lore% 62 Gallery% 82 Achievement% 72 Wizard Run 0 Options --------- Layout 0 ASCII 0 Keyboard 0 Movement Mouse Keybinds 0 Fullscreen 1 Font 18/SmallcapsGlow Map View 76x50 Zoom Use 0% Tactical HUD 1 Map Filters NONE Filters NONE Steam 1 RUN: aad4ec94-546b-46f5-a6d3-36accf391729